[Event "Czech Open-GM 2022"]
[Site "Pardubice"]
[Date "2022.07.26"]
[Round "5.33"]
[White "Bujnoch, Radek"]
[Black "Mica, Marek"]
[Result "1/2-1/2"]
[ECO "D37"]
[WhiteElo "2191"]
[BlackElo "2304"]
[Annotator "TA"]
[PlyCount "58"]
[EventDate "2022.07.22"]
[EventType "swiss"]
[EventCountry "CZE"]
[SourceTitle "playchess.com"]
[Source "ChessBase"]
[SourceQuality "1"]
[TimeControl "40/5400+30:1800+30"]

{[%evp 9,58,31,50,47,53,36,40,31,45,34,43,45,46,22,22,27,30,33,33,25,72,116,135,149,157,146,155,160,158,138,311,297,495,258,407,95,106,120,116,93,94,94,95,94,81,86,88,81,95,21,12]} 1. d4 {[%emt 0:00:02]} Nf6 {[%emt 0:00:09]} 2. c4 {[%emt 0:00:10]} e6 {[%emt 0:00:06]} 3. Nf3 {[%emt 0:00:14]} d5 {[%emt 0:00:22]} 4. Nc3 {[%emt 0:00:08]} dxc4 {[%emt 0:00:14]} 5. e4 {[%emt 0:00:14][%cal Be2e4,Be4e5][%mdl 32]} b5 {[%emt 0:00:26]} 6. e5 {[%emt 0:00:48] D24: Queen's Gambit Accepted: 3 Nf3 Nf6 4 Nc3.} Nd5 {[%emt 0:00:16]} 7. Nxb5 {[%emt 0:00:08]} Nb6 {[%emt 0:00:06]} 8. Be2 {[%emt 0:00:47] White is slightly better.} Be7 {[%emt 0:00:18]} 9. O-O {[%emt 0:00:07]} Nc6 {[%emt 0:00:25]} 10. Be3 {[%emt 0:00:13] 10.Qd2 is the modern continuation.} O-O {[%emt 0:00:45]} 11. Qc1 {[%emt 0:00:09]} Rb8 {[%emt 0:09:29]} 12. Nc3 {[%emt 0:00:07]} Bb7 {[%emt 0:04:35]} 13. Rd1 {[%emt 0:00:32][%cal Od4d5]} Nb4 {[%emt 0:02:49] Prevents d5.} 14. a3 {[%emt 0:01:55] [#]} Nc6 $146 {[%emt 0:06:27] [#]} (14... N4d5 $11) ({Predecessor:} 14... N4d5 15. Nd2 Nxe3 16. fxe3 c5 17. Nxc4 Nxc4 18. Bxc4 cxd4 19. exd4 Bg5 20. Qc2 Be3+ {0-1 (27) Zadruzny,N (2280)-Ochsner,B (2496) Kragero 2022}) 15. d5 $1 $16 {[%emt 0:06:24]} exd5 {[%emt 0:20:09] Strongly threatening ...Na5.} 16. Bxb6 {[%emt 0:00:13]} cxb6 {[%emt 0:00:16]} 17. Nxd5 {[%emt 0:07:51] Pair of Knights!} (17. Rxd5 $6 Qc8 $14) 17... Qe8 {[%emt 0:00:06]} (17... Nxe5 $2 18. Nxe5 Bd6 19. Nxc4 Bxh2+ 20. Kxh2 $18) 18. Qxc4 {[%emt 0:09:31]} Bd8 {[%emt 0:20:11]} 19. Qe4 {[%emt 0:30:50] White is much more active. The black rooks are badly placed.} g6 $2 {[%emt 0:05:37]} (19... Ne7 $16) 20. Bc4 {[%emt 0:01:29]} Rc8 $2 {[%emt 0:01:19]} (20... Kh8 {was necessary.} 21. Qe2 Na5) 21. Ba2 {[%emt 0:02:22]} (21. Qf4 $142) 21... Kg7 {[%emt 0:01:06]} (21... Nb8 {might work better.} 22. b4 Kh8) 22. Re1 $2 {[%emt 0:03:28]} (22. Qe3 $18 {[%cal Od5f6] has better winning chances. Nf6! is the strong threat.} h6 23. Qf4) 22... Ne7 {[%emt 0:01:58]} 23. Rad1 {[%emt 0:01:44]} Rc5 {[%emt 0:00:10]} 24. b4 $36 {[%emt 0:04:49][%mdl 2048] Black is under strong pressure.} Rxd5 {[%emt 0:02:02]} 25. Rxd5 {[%emt 0:01:30]} (25. Bxd5 Nxd5 26. Rxd5 Qe6 $17) 25... Qa4 {[%emt 0:01:46] [#]} 26. e6 $1 {[%emt 0:07:57]} Nxd5 {[%emt 0:00:41]} (26... Bxd5 27. Qd4+) 27. Bxd5 {[%emt 0:00:28]} Bxd5 {[%emt 0:00:37]} 28. Qxd5 {[%emt 0:00:10]} fxe6 {[%emt 0:00:06]} 29. Qxe6 {[%emt 0:14:04]} ({Much weaker is} 29. Rxe6 Qxa3 30. Qd7+ Kg8 $11) (29. Qc4 $16 {aiming for Nd4.} Bf6 30. Nd4 (30. Qxe6 Qxa3 31. Qc4 Qb2 $11) 30... Bxd4 31. Qxd4+ Kg8 32. h4 (32. Rxe6 Qxa3 33. Rc6 Qb3 $14)) 29... Qxa3 {[%emt 0:00:50] Weighted Error Value: White=0.42/Black=0.26 (precise)} 1/2-1/2

[Event "Czech Open-GM 2022"]
[Site "Pardubice"]
[Date "2022.07.26"]
[Round "5.34"]
[White "Smolik, Jachym"]
[Black "Bokhnak, Timofey"]
[Result "1-0"]
[ECO "D37"]
[WhiteElo "2291"]
[BlackElo "2098"]
[Annotator "TA"]
[PlyCount "57"]
[EventDate "2022.07.22"]
[EventType "swiss"]
[EventCountry "CZE"]
[SourceTitle "playchess.com"]
[Source "ChessBase"]
[SourceQuality "1"]
[TimeControl "40/5400+30:1800+30"]

{[%evp 13,57,0,2,0,8,4,43,47,52,21,30,26,34,30,50,39,58,58,75,63,54,66,161,154,241,251,362,259,327,244,284,277,268,266,269,273,288,221,491,379,535,545,954,925,29986,29982]} 1. d4 {[%emt 0:03:46]} Nf6 {[%emt 0:00:44]} 2. c4 {[%emt 0:00:07]} e6 {[%emt 0:00:05]} 3. Nc3 {[%emt 0:00:37]} d5 {[%emt 0:00:54]} 4. Nf3 {[%emt 0:00:11]} Be7 {[%emt 0:02:34]} 5. cxd5 {[%emt 0:00:20]} exd5 {[%emt 0:00:09]} 6. Bf4 {[%emt 0:00:08]} c6 {[%emt 0:03:53]} 7. e3 {[%emt 0:00:30]} Bf5 {[%emt 0:03:28]} 8. Nh4 $1 {[%emt 0:02:39][%mdl 4] [#] is currently scoring better than 8.Bd3. D35: Queen's Gambit Declined: Exchange Variation.} Be6 $146 {[%emt 0:01:31]} ({Predecessor:} 8... Bg4 9. Qc2 Nbd7 10. h3 Be6 11. Nf3 Nf8 12. Bd3 Ng6 13. Bh2 Nd7 14. O-O O-O 15. Rab1 Re8 {1-0 (39) Maghsoodloo,P (2701)-Adams,M (2698) Germany 2022}) 9. Bd3 {[%emt 0:02:11]} Ne4 {[%emt 0:07:43]} 10. Nf3 {[%emt 0:01:54] White is slightly better.} Nd6 {[%emt 0:00:57]} 11. O-O {[%emt 0:09:25]} Nd7 {[%emt 0:02:12]} 12. h3 {[%emt 0:10:01]} O-O {[%emt 0:03:24]} 13. Qc2 {[%emt 0:15:27]} h6 {[%emt 0:03:08]} 14. Ne5 {[%emt 0:02:23]} Nf6 {[%emt 0:11:49]} 15. Na4 {[%emt 0:06:16]} Nde4 {[%emt 0:07:24]} 16. f3 {[%emt 0:01:46]} Nd6 {[%emt 0:01:59][%cal Od6c4]} 17. Nc5 {[%emt 0:02:24]} Qc8 {[%emt 0:04:02]} (17... Bc8 $1 $14) 18. g4 $18 {[%emt 0:07:57]} g5 {[%emt 0:17:09]} (18... Re8 $16 {is a better defense.} 19. h4 Bf8) 19. Bg3 {[%emt 0:01:29]} h5 {[%emt 0:01:47]} (19... Kg7 {might work better.} 20. Qh2 Nfe8) 20. Rf2 {[%emt 0:05:26] h4 is the strong threat.} Kg7 {[%emt 0:01:01]} 21. Rg2 {[%emt 0:03:29]} (21. h4 gxh4 22. Bxh4 Rh8 $18) 21... Rh8 {[%emt 0:01:17]} 22. Nxe6+ {[%emt 0:03:43]} Qxe6 {[%emt 0:00:14]} 23. Bf5 {[%emt 0:01:30]} Nxf5 {[%emt 0:00:08]} 24. gxf5 {[%emt 0:00:04][%cal Bg4f5,Bf5f6][%mdl 32]} Qc8 {[%emt 0:00:35]} 25. Bh4 {[%emt 0:03:41]} Ng4 $2 {[%emt 0:04:23]} (25... g4 26. hxg4 hxg4 27. Bxf6+ Bxf6 28. Nxg4 (28. Rxg4+ Kf8 $16) 28... Rh5) 26. hxg4 {[%emt 0:04:37][%cal Bh3g4,Bg4g5][%mdl 32]} gxh4 {[%emt 0:01:24]} (26... hxg4 $142 27. Bxg5 Bxg5) 27. g5 {[%emt 0:00:19] [#] Black must now prevent f6+.} Bd8 {[%emt 0:01:23]} 28. f6+ {[%emt 0:03:18]} Kf8 {[%emt 0:00:08]} 29. Qc5+ {[%emt 0:00:11] Weighted Error Value: White=0.23 (precise) /Black=0.78} 1-0

[Event "Czech Open-GM 2022"]
[Site "Pardubice"]
[Date "2022.07.26"]
[Round "5.35"]
[White "Jirasko, Miroslav"]
[Black "Strebkovs, Andrejs"]
[Result "0-1"]
[ECO "B01"]
[WhiteElo "2102"]
[BlackElo "2283"]
[Annotator "TA"]
[PlyCount "77"]
[EventDate "2022.07.22"]
[EventType "swiss"]
[EventCountry "CZE"]
[SourceTitle "playchess.com"]
[Source "ChessBase"]
[SourceQuality "1"]
[TimeControl "40/5400+30:1800+30"]

{[%evp 9,77,22,27,-22,19,5,32,10,30,30,28,31,32,37,73,63,83,59,46,56,51,20,46,27,58,48,76,80,79,77,85,60,85,72,86,50,77,84,88,81,89,116,118,110,118,110,121,113,109,122,118,125,121,104,201,179,175,19,65,62,80,104,86,43,52,7,18,0,164,85]} 1. e4 {[%emt 0:00:03]} d5 {[%emt 0:01:05]} 2. exd5 {[%emt 0:00:07]} Qxd5 {[%emt 0:00:04]} 3. Nc3 {[%emt 0:00:05]} Qd6 {[%emt 0:00:06]} 4. d4 {[%emt 0:01:40]} Nf6 {[%emt 0:00:11]} 5. Nb5 {[%emt 0:06:56][%cal Bc3b5,Bb5a3,Ba3c4][%mdl 32]} Qb6 {[%emt 0:01:30]} 6. a4 {[%emt 0:05:31] B01: Scandinavian Defence.} (6. Nf3 {deserves consideration.}) 6... c6 {[%emt 0:01:49] [#]} 7. Na3 $146 {[%emt 0:01:18]} ({Predecessor:} 7. a5 Qd8 8. Nc3 Bg4 9. Be2 Bxe2 10. Ngxe2 e6 11. Bd2 Bd6 12. O-O O-O 13. Re1 {1-0 (61) Schuls,O (2224)-Pohjala,H (2356) Puhajarve 2018}) 7... g6 {[%emt 0:01:07]} 8. Nc4 {[%emt 0:01:33] White is slightly better.} Qd8 {[%emt 0:01:33][%cal Oc6c5]} 9. Be2 {[%emt 0:00:40]} Bg7 {[%emt 0:00:58]} 10. Nf3 {[%emt 0:00:24]} O-O {[%emt 0:01:08][%cal Oc6c5]} 11. O-O {[%emt 0:00:26]} Na6 {[%emt 0:02:39][%cal Bb8a6,Ba6c7,Bc7d5][%mdl 32]} 12. c3 {[%emt 0:04:46]} Nc7 {[%emt 0:04:14]} 13. Bf4 {[%emt 0:04:28]} Ncd5 {[%emt 0:02:34]} 14. Be5 {[%emt 0:00:17]} Bh6 {[%emt 0:01:06]} 15. Ne1 {[%emt 0:02:59]} Nf4 {[%emt 0:04:40]} 16. Bf3 {[%emt 0:03:38]} N6d5 {[%emt 0:05:05]} 17. Nd3 {[%emt 0:06:28]} f6 {[%emt 0:07:56] Hoping for ...Nxd3.} 18. Bxf4 {[%emt 0:00:11]} Nxf4 {[%emt 0:00:27]} 19. Nxf4 {[%emt 0:00:16]} Bxf4 {[%emt 0:00:06]} 20. Qe2 {[%emt 0:03:33]} e6 {[%emt 0:04:11]} 21. b4 {[%emt 0:05:58]} Bd7 {[%emt 0:02:49]} 22. Rfb1 {[%emt 0:06:14]} Qc7 {[%emt 0:07:29]} 23. g3 {[%emt 0:01:52]} Bh6 {[%emt 0:00:31][%cal Oe6e5]} 24. b5 {[%emt 0:11:10]} Rae8 {[%emt 0:05:59]} 25. b6 {[%emt 0:02:56]} axb6 {[%emt 0:02:04]} 26. Rxb6 {[%emt 0:00:18]} e5 {[%emt 0:06:20]} 27. dxe5 {[%emt 0:01:55]} fxe5 {[%emt 0:00:11][%cal Oe5e4]} 28. Rab1 $1 {[%emt 0:06:44]} Bc8 {[%emt 0:01:11][%cal Oe5e4]} 29. Bg4 $1 {[%emt 0:03:03]} Bxg4 {[%emt 0:08:02]} 30. Qxg4 {[%emt 0:00:06]} Qf7 {[%emt 0:00:29]} 31. Qe2 {[%emt 0:03:16]} Re7 {[%emt 0:02:27]} (31... Qf3 $16 {was necessary.} 32. Qxf3 Rxf3) 32. Nd6 $18 {[%emt 0:00:13]} (32. Nxe5 $2 Rxe5 $1 {[%mdl 512]} 33. Qc2 (33. Qxe5 Qxf2+ 34. Kh1 Qf3+ 35. Kg1 Be3+) 33... Qf3 $19) 32... Qd5 {[%emt 0:04:28] [#]} 33. Qc4 $2 {[%emt 0:03:43]} ({Stronger than} 33. Nxb7 Ref7 34. Rf1 (34. c4 $2 Qd4 $19) 34... Rf3 $15) (33. Ne4 $1 $18) 33... e4 {[%emt 0:03:51]} (33... Bd2 $11) 34. Rxb7 $14 {[%emt 0:02:41]} Re6 {[%emt 0:01:41]} 35. Qxd5 {[%emt 0:02:52]} cxd5 {[%emt 0:00:03]} 36. Rd7 {[%emt 0:02:09]} e3 {[%emt 0:03:13]} 37. fxe3 {[%emt 0:00:05]} (37. f4 $5 {[%cal Rb1e1]}) 37... Bxe3+ {[%emt 0:02:02]} 38. Kg2 {[%emt 0:03:23] aiming for Rbb7.} Bd2 $2 {[%emt 0:02:32] [#]} (38... Bc5 $11 {and Black is okay.} 39. Nb5 Rf2+ 40. Kh3 g5 41. Rd8+ (41. Rxd5 Be7 $11) 41... Kg7 42. Rxd5 Be7) 39. c4 {[%emt 0:00:00][%mdl 32768] Weighted Error Value: White=0.20 (precise) /Black=0.28 (precise) . Loss on time!?} (39. Rbb7 $1 $18 Bxc3 40. Nf7) 0-1

[Event "Czech Open-GM 2022"]
[Site "Pardubice"]
[Date "2022.07.26"]
[Round "5.36"]
[White "Jonsson, Gauti Pall"]
[Black "Plat, Vojtech"]
[Result "0-1"]
[ECO "B30"]
[WhiteElo "2071"]
[BlackElo "2554"]
[Annotator "TA"]
[PlyCount "54"]
[EventDate "2022.07.22"]
[EventType "swiss"]
[EventCountry "CZE"]
[SourceTitle "playchess.com"]
[Source "ChessBase"]
[SourceQuality "1"]
[TimeControl "40/5400+30:1800+30"]

{[%evp 9,54,27,49,46,50,59,56,62,58,57,85,63,75,91,117,111,123,128,150,74,118,114,105,0,0,0,12,-44,-44,-71,-71,-281,-291,-274,-270,-268,-268,-355,-229,-227,-247,-376,-365,-545,-543,-635,-495]} 1. e4 {[%emt 0:00:13]} c5 {[%emt 0:00:28]} 2. Nf3 {[%emt 0:00:57]} Nc6 {[%emt 0:00:16]} 3. Bc4 {[%emt 0:01:11]} g6 {[%emt 0:00:34]} 4. O-O {[%emt 0:01:19]} Bg7 {[%emt 0:00:10]} 5. c3 {[%emt 0:01:30]} Na5 {[%emt 0:02:36]} 6. Be2 {[%emt 0:03:52] B27: Sicilian: 2 Nf3, unusual Black 2nd moves.} Nf6 {[%emt 0:05:33]} 7. e5 {[%emt 0:02:37]} Nd5 {[%emt 0:00:08]} 8. d4 {[%emt 0:02:35] White is slightly better.} cxd4 {[%emt 0:00:09]} 9. Qxd4 {[%emt 0:05:14]} Nc7 {[%emt 0:05:06]} 10. Qh4 {[%emt 0:03:04] [#]} Ne6 $146 {[%emt 0:11:36]} ({Predecessor:} 10... h6 11. Re1 Nc6 12. Qg3 Ne6 13. Na3 a6 14. Nc4 b5 15. Ne3 Bb7 16. Nd5 Ncd4 17. Nxd4 Bxd5 18. Nxe6 Bxe6 {½-½ (59) Hamitevici,V (2482)-Devereaux,M (2356) La Massana 2013}) 11. Bh6 {[%emt 0:02:48]} Bxh6 {[%emt 0:00:06]} 12. Qxh6 {[%emt 0:00:09]} Qc7 {[%emt 0:00:11]} 13. Nbd2 {[%emt 0:02:23]} Nc6 {[%emt 0:05:26]} 14. Nc4 {[%emt 0:08:20]} ({White should play} 14. Bc4 $1) 14... b6 {[%emt 0:12:59]} 15. Rfd1 {[%emt 0:07:45]} Ba6 {[%emt 0:07:11]} 16. Nd6+ {[%emt 0:06:38]} exd6 $11 {[%emt 0:00:31][%cal Be7d6,Bd6e5,Be5e4][%mdl 32]} 17. Bxa6 {[%emt 0:00:28]} dxe5 {[%emt 0:00:26]} 18. Rd5 {[%emt 0:08:02]} (18. Ng5 $11 Nxg5 19. Qxg5) 18... e4 $15 {[%emt 0:18:30]} 19. Ng5 {[%emt 0:04:03] [#]} Ne7 $1 {[%emt 0:00:10][%cal Bc6e7,Be7d5,Bd5f4][%mdl 32]} 20. Nxh7 $2 {[%emt 0:02:51] Loses the game.} Rxh7 $19 {[%emt 0:05:09]} ({Not} 20... Nxd5 {[#]} 21. Nf6+ $1 {[%mdl 512]} Nxf6 22. Qxh8+ Ke7 23. Qxa8 $16) 21. Qxh7 {[%emt 0:00:09] Qh8+ is the strong threat.} Nxd5 {[%emt 0:00:02]} 22. Qh8+ {[%emt 0:00:57]} Nf8 {[%emt 0:00:03] aiming for ...Ke7.} 23. Re1 {[%emt 0:00:41]} Nf4 {[%emt 0:02:49] White must now prevent ...d5.} 24. Rxe4+ {[%emt 0:03:35]} N4e6 {[%emt 0:00:01]} 25. g4 {[%emt 0:01:56]} (25. Qd4 {keeps fighting.}) 25... Qc6 {[%emt 0:01:41]} 26. Rc4 {[%emt 0:02:58]} (26. Bd3 $142 O-O-O 27. Qe5) 26... Qd5 {[%emt 0:00:38]} 27. a4 {[%emt 0:00:47]} Ke7 {[%emt 0:02:17] Weighted Error Value: White=0.61/Black=0.13 (very precise)} 0-1

[Event "Czech Open-GM 2022"]
[Site "Pardubice"]
[Date "2022.07.26"]
[Round "5.37"]
[White "Finek, Vaclav"]
[Black "Gyerpal, Adrian"]
[Result "1/2-1/2"]
[ECO "D11"]
[WhiteElo "2393"]
[BlackElo "2193"]
[Annotator "TA"]
[PlyCount "106"]
[EventDate "2022.07.22"]
[EventType "swiss"]
[EventCountry "CZE"]
[SourceTitle "playchess.com"]
[Source "ChessBase"]
[SourceQuality "1"]
[TimeControl "40/5400+30:1800+30"]

{[%evp 13,106,3,11,6,16,11,17,8,15,0,6,1,8,8,20,17,73,45,67,-5,58,63,62,62,58,36,36,36,36,40,40,0,0,0,0,0,0,0,0,0,10,4,54,64,49,56,112,37,109,24,30,3,35,0,99,100,97,102,225,203,216,208,203,123,127,108,207,217,217,212,206,206,325,296,370,0,0,0,0,0,0,0,0,0,0,0,0,0,0,0,0,0,0,0,0]} 1. d4 {[%emt 0:00:02]} d5 {[%emt 0:00:18]} 2. c4 {[%emt 0:00:05]} c6 {[%emt 0:00:05]} 3. Nf3 {[%emt 0:00:05]} Nf6 {[%emt 0:00:07]} 4. Qc2 {[%emt 0:00:05]} dxc4 {[%emt 0:00:16]} 5. Qxc4 {[%emt 0:00:06]} Bf5 {[%emt 0:00:10]} 6. g3 {[%emt 0:00:07]} e6 {[%emt 0:00:27]} 7. Bg2 {[%emt 0:00:08]} Be7 {[%emt 0:00:15]} 8. O-O {[%emt 0:00:08] D23: Queen's Gambit Accepted: 3 Nf3 Nf6 sidelines.} O-O {[%emt 0:00:08]} 9. e3 {[%emt 0:00:13]} Nbd7 {[%emt 0:00:54]} 10. Qe2 $1 {[%emt 0:00:11] 10.Qe2 scores better than 10.Rd1.} Bg6 {[%emt 0:00:34]} 11. Nc3 {[%emt 0:00:24]} b5 {[%emt 0:06:08]} 12. b3 {[%emt 0:17:20][%cal Bb2b3,Bb3b4][%mdl 32]} Rc8 {[%emt 0:02:30]} 13. Bb2 {[%emt 0:01:48] [#]} Qa5 $146 {[%emt 0:02:13]} ({Predecessor:} 13... Qb6 14. Rac1 a6 15. h3 h6 16. Ne5 Nxe5 17. dxe5 Nd5 18. Ne4 Bxe4 19. Bxe4 Qa5 {1-0 (54) Seo,J (2456)-Nemec,J (2286) Uppsala 2021}) 14. a3 {[%emt 0:06:14]} Ne4 {[%emt 0:12:18]} (14... Rfd8 $11) 15. b4 {[%emt 0:01:16]} (15. Rfc1 $5 {[%cal Rc3e4]}) 15... Qc7 {[%emt 0:04:42]} 16. Ne1 {[%emt 0:05:36]} (16. Rfc1 $14) 16... Ndf6 {[%emt 0:08:59]} ({Black should try} 16... Nd6 $11) 17. Nd3 $14 {[%emt 0:03:05]} Nxc3 {[%emt 0:14:04]} 18. Bxc3 {[%emt 0:00:28]} Nd5 {[%emt 0:01:02][%cal Bf6d5,Bd5b6,Bb6c4][%mdl 32]} 19. Rac1 {[%emt 0:01:38]} Bxd3 {[%emt 0:02:07]} 20. Qxd3 {[%emt 0:00:40]} a5 {[%emt 0:01:33]} 21. Bd2 {[%emt 0:05:17]} axb4 {[%emt 0:05:32]} 22. e4 {[%emt 0:02:42]} (22. Bxd5 $5 exd5 23. Bxb4 $14) 22... Nb6 {[%emt 0:02:02]} 23. axb4 {[%emt 0:00:34]} Rfd8 {[%emt 0:02:14]} 24. Bc3 {[%emt 0:10:31]} Nc4 {[%emt 0:05:13]} 25. Qe2 {[%emt 0:01:38]} Ra8 {[%emt 0:02:10]} 26. Rfd1 {[%emt 0:03:04]} Ra4 {[%emt 0:05:39]} 27. d5 {[%emt 0:08:03]} exd5 {[%emt 0:08:26]} (27... Bxb4 28. Bxb4 Rxb4 29. dxc6 $16) (27... cxd5 $11 28. exd5 e5) 28. exd5 {[%emt 0:00:10]} c5 $1 {[%emt 0:00:26]} 29. bxc5 {[%emt 0:02:52]} Bxc5 {[%emt 0:00:22]} (29... Qxc5 $14 30. Rb1 Na3) 30. Be4 {[%emt 0:05:24] This bishop pair is nice.} (30. d6 $1 $16 {[%cal Rd6c7]} Nxd6 31. Bxg7 $1 Kxg7 32. Qe5+ f6 33. Qxc5 (33. Rxc5 fxe5 34. Rxc7+ Kg6 $16) 33... Qxc5 34. Rxc5) 30... Qa7 {[%emt 0:05:29] [#]} ({Black should play} 30... Qe7 $14) 31. Ra1 {[%emt 0:06:23]} (31. Qg4 $1 $16 {[%csl Gc3][%cal Rg4g7]} g6 32. d6) 31... Rxa1 {[%emt 0:01:44]} 32. Rxa1 $40 {[%emt 0:00:57][%mdl 128] White attacks.} Qb6 {[%emt 0:01:16]} 33. Rb1 {[%emt 0:06:28]} Bd4 {[%emt 0:02:15] [#]} (33... Re8 $11 {remains equal.} 34. Bxh7+ Kxh7 35. Qxe8 Bxf2+ 36. Kg2 Qg6) 34. Bxh7+ $1 $16 {[%emt 0:04:03]} Kxh7 {[%emt 0:01:35]} 35. Qe4+ {[%emt 0:00:05]} Qg6 {[%emt 0:01:38]} (35... f5 $2 36. Qh4+ (36. Qxd4 Qxd4 37. Bxd4 Rxd5 $11) 36... Qh6 37. Qxd4 $18 (37. Qxd8 Bxc3 38. Qc8 Qf6 $11)) (35... Kg8 $16 36. Bxd4 Qh6) 36. Qh4+ $18 {[%emt 0:00:04]} Qh6 {[%emt 0:00:04] And now ...Qxh4 would win.} 37. Qxd4 {[%emt 0:00:07]} ({Inferior is} 37. Qxd8 Bxc3 38. Rxb5 Qc1+ 39. Kg2 Ne3+ 40. fxe3 Qc2+ 41. Kh3 Qf5+ 42. Kg2 Qc2+ 43. Kh3 Qf5+ 44. Kg2 Qc2+ $11) 37... Nd6 {[%emt 0:00:48]} 38. Bd2 {[%emt 0:01:25]} Qh5 {[%emt 0:00:47]} 39. Bf4 {[%emt 0:01:44] White is more active.} Qf5 {[%emt 0:01:10]} (39... Qe2 $16 {might work better.}) 40. Rb4 {[%emt 0:00:42]} Ne8 {[%emt 0:02:12]} 41. Rxb5 {[%emt 0:31:12]} Nf6 {[%emt 0:01:52]} 42. Be5 {[%emt 0:00:00]} Ne4 {[%emt 0:02:56]} (42... Ng4 $142 43. d6 (43. Bxg7 Re8 $15) 43... Re8) 43. Bxg7 {[%emt 0:00:00] Rb6 is the strong threat.} f6 {[%emt 0:15:42] [#]} 44. d6 $2 {[%emt 0:00:00]} Qxb5 $11 {[%emt 0:02:57] The position is equal.} 45. Qxe4+ {[%emt 0:00:00]} Kxg7 {[%emt 0:03:30]} 46. Qe7+ {[%emt 0:00:00]} Kg6 {[%emt 0:00:24]} 47. Qxd8 {[%emt 0:00:00][%mdl 4096] Endgame KQ-KQ} Qb1+ {[%emt 0:00:05]} 48. Kg2 {[%emt 0:00:00] Intending Qe8+ and mate.} Qe4+ {[%emt 0:01:02]} 49. Kh3 {[%emt 0:00:02]} Qf5+ $1 {[%emt 0:00:20]} 50. Kg2 {[%emt 0:00:03]} Qe4+ {[%emt 0:00:06]} 51. f3 {[%emt 0:01:05]} Qc2+ {[%emt 0:00:17]} 52. Kg1 {[%emt 0:00:04]} Qd1+ {[%emt 0:00:58]} 53. Kg2 {[%emt 0:00:06]} Qc2+ {[%emt 0:00:07] Black defended with fortune.  Weighted Error Value: White=0.22 (precise) /Black=0.24 (precise)} 1/2-1/2

[Event "Czech Open-GM 2022"]
[Site "Pardubice"]
[Date "2022.07.26"]
[Round "5.38"]
[White "Mondrzycki, Bartlomiej"]
[Black "Czerw, Dawid"]
[Result "1/2-1/2"]
[ECO "A46"]
[WhiteElo "2180"]
[BlackElo "2391"]
[Annotator "TA"]
[PlyCount "56"]
[EventDate "2022.07.22"]
[EventType "swiss"]
[EventCountry "CZE"]
[SourceTitle "playchess.com"]
[Source "ChessBase"]
[SourceQuality "1"]
[TimeControl "40/5400+30:1800+30"]

{[%evp 9,56,10,17,25,22,-31,-35,-24,-7,-5,0,0,9,-2,0,0,1,0,0,0,0,0,0,0,0,0,34,24,35,31,73,77,78,50,55,33,22,31,97,68,74,62,88,64,65,0,0,0,52]} 1. d4 {[%emt 0:00:03]} Nf6 {[%emt 0:00:05]} 2. Nf3 {[%emt 0:00:04]} e6 {[%emt 0:00:26]} 3. Bg5 {[%emt 0:00:04]} h6 {[%emt 0:00:18]} 4. Bh4 {[%emt 0:00:07]} d5 {[%emt 0:00:08]} 5. e3 {[%emt 0:00:36]} g5 {[%emt 0:02:53]} 6. Bg3 {[%emt 0:00:07] D03: 1 d4 d5 2 Nf3 Nf6 3 Bg5, including Torre Attack with early ...d5.} Ne4 {[%emt 0:00:08]} 7. Nfd2 {[%emt 0:04:57]} (7. Nbd2 $11) 7... Nxg3 $15 {[%emt 0:02:59]} 8. hxg3 {[%emt 0:00:03] Black is slightly better.} c5 {[%emt 0:00:17]} 9. dxc5 {[%emt 0:12:35] [#]} Bxc5 $146 {[%emt 0:00:54]} ({Predecessor:} 9... Bg7 10. c3 Qc7 11. e4 O-O 12. Be2 Rd8 13. exd5 Rxd5 14. O-O Na6 15. Bf3 Rd8 {0-1 (72) Kan,I-Antoshin,V Moscow 1955}) 10. Nb3 {[%emt 0:03:25]} Be7 {[%emt 0:11:37]} 11. N1d2 {[%emt 0:00:56]} Nc6 {[%emt 0:01:26]} 12. Be2 {[%emt 0:01:17]} e5 {[%emt 0:02:49]} 13. c4 {[%emt 0:16:33]} d4 {[%emt 0:05:38]} 14. exd4 {[%emt 0:16:00]} Nxd4 {[%emt 0:01:57]} 15. O-O {[%emt 0:05:42][%cal Bh1f1,Bf1d1,Bd1d5][%mdl 32]} Be6 {[%emt 0:06:59][%cal Oh6h5]} 16. Nxd4 {[%emt 0:05:33]} Qxd4 {[%emt 0:00:25]} 17. Qc2 {[%emt 0:02:08]} Qd7 {[%emt 0:09:33]} 18. Rfd1 {[%emt 0:04:01]} Qc7 {[%emt 0:02:40]} 19. Ne4 {[%emt 0:07:05]} h5 {[%emt 0:17:04]} 20. Nc3 {[%emt 0:01:27] White is more active.} h4 {[%emt 0:02:42]} 21. g4 {[%emt 0:00:02]} h3 {[%emt 0:00:50]} 22. Nd5 {[%emt 0:03:51]} Bxd5 {[%emt 0:13:31]} 23. Rxd5 {[%emt 0:00:02]} Bc5 {[%emt 0:00:52]} ({Black should try} 23... hxg2 $14 24. Kxg2 (24. Qa4+ $2 Kf8 $19) 24... e4) 24. gxh3 {[%emt 0:05:06]} Rxh3 {[%emt 0:02:41]} 25. Kg2 {[%emt 0:00:02]} Rh6 {[%emt 0:01:26]} 26. Qe4 {[%emt 0:02:37]} Kf8 {[%emt 0:02:35]} 27. Rh1 {[%emt 0:02:36]} ({Stronger than} 27. Rxe5 f6 28. Rxc5 Qh2+ 29. Kf1 Qh1+ 30. Qxh1 Rxh1+ 31. Kg2 Rxa1 $17) (27. Qf5 $14) 27... Rxh1 $11 {[%emt 0:03:58]} 28. Kxh1 {[%emt 0:00:03] [#] aiming for Qh7.} Re8 {[%emt 0:01:08] Weighted Error Value: White=0.12 (very precise) /Black=0.09 (flawless)} (28... Rd8 $11) 1/2-1/2